fUST/lending_fUST_20250530
["ID","MTS","AMOUNT","RATE_DAILY","PERIOD"]
[363098084,1748575847461,-230.44978033,0.00019178,2]
[363098085,1748575847472,-395.75578943,0.00019452,2]
[363098086,1748575847483,-37.33881495,0.00019452,2]
[363098087,1748575847493,-430.0,0.00019452,2]
[363098088,1748575847502,-430.0,0.00019452,2]
[363098089,1748575847512,-430.0,0.00019452,2]
[363098090,1748575847521,-492.02,0.00019452,2]
[363098091,1748575847530,-341.28839488,0.00019452,2]
[363098092,1748575847540,-430.0,0.00019452,2]
[363098093,1748575847549,-430.0,0.00019452,2]
[363098094,1748575847558,-430.0,0.00019452,2]
[363098095,1748575847568,-430.0,0.00019452,2]
[363098096,1748575847578,-430.0,0.00019452,2]
[363098097,1748575847588,-450.0,0.00019452,2]
[363098098,1748575847598,-554.66,0.00019452,2]
[363098099,1748575847607,-430.0,0.00019452,2]
[363098100,1748575847617,-500.0,0.00019473,2]
[363098101,1748575847627,-160.0,0.00019488,2]
[363098102,1748575847637,-19398.79111156,0.000195,2]
[363098103,1748575847649,-257.3663636,0.000195,2]
[363098108,1748575847858,-5000.0,0.00018986,2]
[363098109,1748575847874,-430.0,0.00019178,2]
[363098110,1748575847894,-430.0,0.00019178,2]
[363098111,1748575847906,-430.0,0.00019178,2]
[363098112,1748575847916,-3020.39360691,0.000195,2]
[363098114,1748575848402,-39.62766798,0.000195,2]
[363098283,1748576103081,633.409614,0.00015,2]
[363098286,1748576235085,2019.0,0.000158,2]
[363098287,1748576366310,-5000.0,0.00016998,2]
[363098288,1748576366336,-167.63,0.0001717,2]
[363098289,1748576366361,-195.57,0.0001783,2]
[363098290,1748576366390,-1014.02099267,0.00018,2]
[363098291,1748576366418,-1014.02099253,0.00018141,2]
[363098292,1748576366446,-1014.02099253,0.00018383,2]
[363098293,1748576366470,-223.51,0.0001849,2]
[363098294,1748576366493,-300.0,0.00018507,2]
[363098295,1748576366515,-854.0,0.00018508,2]
[363098296,1748576366538,-300.0,0.00018508,2]
[363098297,1748576366561,-300.0,0.00018509,2]
[363098298,1748576366583,-289.0,0.00018509,2]
[363098299,1748576366606,-300.0,0.00018509,2]
[363098300,1748576366628,-300.0,0.00018509,2]
[363098301,1748576366649,-5000.0,0.0001851,2]
[363098302,1748576366671,-500.0,0.00018519,2]
[363098303,1748576366693,-500.0,0.00018519,2]
[363098304,1748576366714,-498.7581351,0.00018519,2]
[363098305,1748576366737,-500.0,0.00018519,2]
[363098306,1748576366759,-500.0,0.00018519,2]
[363098307,1748576366782,-490.43127191,0.00018519,2]
[363098308,1748576366805,-170.46860777,0.00018519,2]
[363098309,1748576366829,-24900.0,0.0001852,2]
[363098310,1748576366857,-1014.02099253,0.00018624,2]
[363098311,1748576366879,-459.9631946,0.000188,2]
[363098312,1748576366905,-1014.02099253,0.00018866,2]
[363098313,1748576366926,-233.90587142,0.000189,2]
[363098314,1748576366953,-1014.02099253,0.00019107,2]
[363098315,1748576366978,-251.45,0.00019151,2]
[363098316,1748576366999,-649.76417678,0.00019177,2]
[363098317,1748576367026,-500.0,0.00019177,2]
[363098318,1748576367049,-500.0,0.00019177,2]
[363098319,1748576367073,-500.0,0.00019177,2]
[363098320,1748576367100,-500.0,0.00019177,2]
[363098321,1748576367125,-500.0,0.00019177,2]
[363098322,1748576367148,-500.0,0.00019177,2]
[363098323,1748576367173,-500.0,0.00019177,2]
[363098324,1748576367196,-500.0,0.00019177,2]
[363098325,1748576367218,-500.0,0.00019177,2]
[363098326,1748576367241,-500.0,0.00019177,2]
[363098327,1748576367265,-500.0,0.00019177,2]
[363098328,1748576367288,-500.0,0.00019177,2]
[363098329,1748576367313,-500.00000001,0.00019177,2]
[363098330,1748576367338,-500.0,0.00019177,2]
[363098331,1748576367362,-816.17236721,0.00019177,2]
[363098332,1748576367387,-816.17236721,0.00019177,2]
[363098333,1748576367409,-816.17236721,0.00019177,2]
[363098334,1748576367432,-816.17236721,0.00019177,2]
[363098335,1748576367454,-816.17236721,0.00019177,2]
[363098336,1748576367478,-816.17236721,0.00019177,2]
[363098337,1748576367500,-816.17236721,0.00019177,2]
[363098338,1748576367523,-816.17236721,0.00019177,2]
[363098339,1748576367546,-816.17236721,0.00019177,2]
[363098340,1748576367569,-816.17236721,0.00019177,2]
[363098341,1748576367593,-816.17236721,0.00019177,2]
[363098342,1748576367615,-816.17236721,0.00019177,2]
[363098343,1748576367636,-816.17236721,0.00019177,2]
[363098344,1748576367658,-816.17236721,0.00019177,2]
[363098345,1748576367680,-959.00253149,0.00019177,2]
[363098346,1748576367703,-430.0,0.00019178,2]
[363098347,1748576367724,-430.0,0.00019178,2]
[363098348,1748576367745,-461.81979733,0.00019178,2]
[363098349,1748576367766,-430.0,0.00019178,2]
[363098350,1748576367788,-408.24031496,0.00019178,2]
[363098351,1748576367810,-430.0,0.00019178,2]
[363098352,1748576367832,-430.0,0.00019178,2]
[363098353,1748576367854,-430.0,0.00019178,2]
[363098354,1748576367876,-405.85471231,0.00019178,2]
[363098355,1748576367897,-430.0,0.00019178,2]
[363098356,1748576367918,-430.0,0.00019178,2]
[363098357,1748576367940,-430.0,0.00019178,2]
[363098358,1748576367961,-430.0,0.00019178,2]
[363098359,1748576367983,-430.0,0.00019178,2]
[363098360,1748576368005,-430.0,0.00019178,2]
[363098361,1748576368028,-430.0,0.00019178,2]
[363098362,1748576368049,-430.0,0.00019178,2]
[363098363,1748576368070,-490.0,0.00019178,2]
[363098364,1748576368095,-435.30875205,0.00019178,2]
[363098365,1748576368116,-430.0,0.00019178,2]
[363098366,1748576368138,-430.0,0.00019178,2]
[363098367,1748576368160,-514.68391956,0.00019178,2]
[363098368,1748576368182,-430.0,0.00019178,2]
[363098369,1748576368202,-430.0,0.00019178,2]
[363098370,1748576368224,-430.0,0.00019178,2]
[363098371,1748576368247,-430.0,0.00019178,2]
[363098372,1748576368269,-430.0,0.00019178,2]
[363098373,1748576368445,-526.70631053,0.00019178,2]
[363098374,1748576368469,-430.0,0.00019178,2]
[363098375,1748576368491,-430.0,0.00019178,2]
[363098376,1748576368511,-430.0,0.00019178,2]
[363098377,1748576368542,-291.32272123,0.00019178,2]
[363098378,1748576368569,-430.0,0.00019178,2]
[363098379,1748576368593,-430.0,0.00019178,2]
[363098380,1748576368617,-430.0,0.00019178,2]
[363098381,1748576368640,-430.0,0.00019178,2]
[363098382,1748576368662,-430.0,0.00019178,2]
[363098383,1748576368685,-430.0,0.00019178,2]
[363098384,1748576368708,-430.0,0.00019178,2]
[363098385,1748576368730,-430.0,0.00019178,2]
[363098386,1748576368752,-430.0,0.00019178,2]
[363098387,1748576368774,-443.49715802,0.00019178,2]
[363098388,1748576368796,-500.0,0.00019178,2]
[363098389,1748576368817,-430.0,0.00019178,2]
[363098390,1748576368840,-430.0,0.00019178,2]
[363098391,1748576368862,-430.0,0.00019178,2]
[363098392,1748576368884,-430.0,0.00019178,2]
[363098393,1748576368907,-490.0,0.00019178,2]
[363098394,1748576368929,-430.0,0.00019178,2]
[363098395,1748576368952,-430.0,0.00019178,2]
[363098396,1748576368975,-430.0,0.00019178,2]
[363098397,1748576368997,-400.0,0.00019178,2]
[363098398,1748576369020,-440.0,0.00019178,2]
[363098399,1748576369056,-400.92535718,0.00019178,2]
[363098400,1748576369083,-430.0,0.00019178,2]
[363098401,1748576369105,-470.0,0.00019178,2]
[363098402,1748576369130,-490.90615479,0.00019178,2]
[363098403,1748576369152,-430.0,0.00019178,2]
[363098404,1748576369174,-206.037986,0.00019178,2]
[363098405,1748576369197,-408.1520334,0.00019178,2]
[363098406,1748576369219,-430.0,0.00019178,2]
[363098407,1748576369241,-430.0,0.00019178,2]
[363098408,1748576369263,-430.0,0.00019178,2]
[363098409,1748576369286,-410.66100597,0.00019178,2]
[363098410,1748576369307,-400.0,0.00019178,2]
[363098411,1748576369331,-413.95301629,0.00019178,2]
[363098412,1748576369352,-370.0,0.00019178,2]
[363098413,1748576369374,-500.0,0.00019178,2]
[363098414,1748576369396,-767.29,0.00019178,2]
[363098415,1748576369420,-430.0,0.00019178,2]
[363098416,1748576369441,-430.0,0.00019178,2]
[363098417,1748576369463,-430.0,0.00019178,2]
[363098418,1748576369485,-430.0,0.00019178,2]
[363098419,1748576369507,-527.39,0.00019178,2]
[363098420,1748576369529,-430.0,0.00019178,2]
[363098421,1748576369552,-430.0,0.00019178,2]
[363098422,1748576369576,-430.0,0.00019178,2]
[363098423,1748576369598,-430.0,0.00019178,2]
[363098424,1748576369619,-420.0,0.00019178,2]
[363098425,1748576369640,-430.0,0.00019178,2]
[363098426,1748576369662,-430.0,0.00019178,2]
[363098427,1748576369684,-430.0,0.00019178,2]
[363098428,1748576369708,-430.0,0.00019178,2]
[363098429,1748576369729,-430.0,0.00019178,2]
[363098430,1748576369751,-430.0,0.00019178,2]
[363098431,1748576369772,-430.0,0.00019178,2]
[363098432,1748576369795,-430.0,0.00019178,2]
[363098433,1748576369816,-430.0,0.00019178,2]
[363098434,1748576369839,-500.0,0.00019178,2]
[363098435,1748576369861,-500.0,0.00019178,2]
[363098436,1748576369882,-500.0,0.00019178,2]
[363098437,1748576369903,-430.0,0.00019178,2]
[363098438,1748576369924,-430.0,0.00019178,2]
[363098439,1748576369946,-367.88774632,0.00019178,2]
[363098440,1748576369966,-430.0,0.00019178,2]
[363098441,1748576369987,-430.0,0.00019178,2]
[363098442,1748576370009,-688.44,0.00019178,2]
[363098443,1748576370032,-430.0,0.00019178,2]
[363098444,1748576370052,-375.87908355,0.00019178,2]
[363098445,1748576370074,-430.0,0.00019178,2]
[363098446,1748576370097,-430.0,0.00019178,2]
[363098447,1748576370119,-430.0,0.00019178,2]
[363098448,1748576370142,-20.05104517,0.00019178,2]
[363098449,1748576464269,-153.56906213,0.00018517,2]
[363098450,1748576550543,220.75,0.00015248,2]
[363098451,1748576550888,294.33,0.00015911,2]
[363098452,1748576604491,-4895.0,0.00016408,2]
[363098453,1748576620772,186.49,0.00014587,2]
[363098454,1748576621179,279.74,0.0001525,2]
[363098455,1748576621589,372.98,0.00015913,2]
[363098456,1748576675208,-4.29759311,0.00016408,2]
[363098457,1748576675234,-437.70240689,0.00016576,2]
[363098458,1748576691675,201.75,0.00014757,2]
[363098459,1748576692074,302.63,0.00015427,2]
[363098460,1748576740678,-333.0,0.00016098,2]
[363098463,1748576763230,189.82,0.00014742,2]
[363098464,1748576763517,284.73,0.00015412,2]
[363098472,1748576801613,1166.883282,0.00013699,2]
[363098474,1748576811250,-237.0,0.00016082,2]
[363098475,1748576822457,-142.64,0.00016082,2]
[363098476,1748576822483,-69.4416168,0.0001641,2]
[363098477,1748576834227,238.14,0.00014767,2]
[363098478,1748576834622,357.2,0.00015439,2]
[363098479,1748576848107,-211.42813986,0.0001611,2]
[363098480,1748576849471,-182.87753159,0.0001611,2]
[363098481,1748576870105,961.76296333,0.00016,2]
[363098482,1748576870132,4038.23703667,0.00016,2]
[363098483,1748576879348,-81.96432855,0.0001611,2]
[363098484,1748576879372,-418.03567145,0.00016781,2]
[363098486,1748576906572,230.32,0.00014712,2]
[363098487,1748576906834,345.47,0.00015381,2]
[363098488,1748576918180,12001.0,0.0001917,30]
[363098489,1748576961118,-460.63,0.00016049,2]
[363098490,1748576961140,-4903.29639938,0.00016613,2]
[363098491,1748576974174,-96.70360062,0.00016613,2]
[363098492,1748576974199,-575.79,0.00016718,2]
[363098493,1748576974222,-300.0,0.00017242,2]
[363098494,1748576974243,-6756.9582156,0.00017243,2]
[363098495,1748576974267,-690.95,0.00017387,2]
[363098496,1748576974289,-2043.38909175,0.00017485,2]
[363098497,1748576976743,192.63,0.00014691,2]
[363098498,1748576977669,288.94,0.00015359,2]
[363098499,1748576986998,5000.0,0.00016,2]
[363098500,1748576991694,10000.0,0.00021918,60]
[363098503,1748577002257,10000.0,0.00021918,60]
[363098504,1748577002323,230.11318555,0.00016,2]
[363098505,1748577002348,4769.88681445,0.00016,2]
[363098506,1748577012178,10000.0,0.00021918,60]
[363098507,1748577018190,3939.54081536,0.00016,2]
[363098508,1748577025730,251.0,0.00021918,60]
[363098518,1748577031976,-385.26,0.00016027,2]
[363098519,1748577031986,-481.57,0.00016694,2]
[363098520,1748577031996,-11350.55711302,0.00017067,2]
[363098556,1748577037753,-5843.50958023,0.00017067,2]
[363098559,1748577037766,-1275.82370823,0.00017067,2]
[363098564,1748577037808,-5781.87,0.00017067,2]
[363098576,1748577037918,-648.23959852,0.00017067,2]
[363098578,1748577037927,-233.92612084,0.00017142,2]
[363098580,1748577037937,-577.88,0.00017362,2]
[363098582,1748577037947,-222.33292665,0.00017485,2]
[363098584,1748577037956,-407.36152,0.00017704,2]
[363098586,1748577037965,-1200.0,0.00017848,2]
[363098588,1748577037975,-300.0,0.00017848,2]
[363098590,1748577037984,-300.0,0.00017849,2]
[363098592,1748577037994,-300.0,0.00017849,2]
[363098593,1748577038004,-300.0,0.00017849,2]
[363098595,1748577038013,-300.0,0.00017849,2]
[363098597,1748577038023,-300.0,0.00017849,2]
[363098599,1748577038033,-7348.2273479,0.0001785,2]
[363098601,1748577038042,-165.24554076,0.0001785,2]
[363098603,1748577038052,-500.0,0.0001785,2]
[363098605,1748577038062,-178.32839605,0.0001785,2]
[363098607,1748577038072,-500.0,0.0001785,2]
[363098609,1748577038082,-326.49081964,0.0001785,2]
[363098611,1748577038092,-500.0,0.0001785,2]
[363098627,1748577038101,-500.0,0.0001785,2]
[363098629,1748577038246,-500.0,0.0001785,2]
[363098631,1748577038255,-500.0,0.0001785,2]
[363098633,1748577038265,-411.97728611,0.0001785,2]
[363098635,1748577038276,-500.0,0.0001785,2]
[363098637,1748577038287,-500.0,0.0001785,2]
[363098639,1748577038297,-500.0,0.0001785,2]
[363098641,1748577038306,-500.0,0.0001785,2]
[363098643,1748577038317,-500.0,0.0001785,2]
[363098645,1748577038326,-500.0,0.0001785,2]
[363098647,1748577038336,-500.0,0.0001785,2]
[363098649,1748577038346,-500.0,0.0001785,2]
[363098651,1748577038357,-500.0,0.0001785,2]
[363098653,1748577038366,-500.0,0.0001785,2]
[363098655,1748577038376,-500.0,0.0001785,2]
[363098657,1748577038385,-500.0,0.0001785,2]
[363098659,1748577038395,-500.0,0.0001785,2]
[363098661,1748577038404,-500.0,0.0001785,2]
[363098663,1748577038414,-500.0,0.0001785,2]
[363098665,1748577038424,-500.0,0.0001785,2]
[363098667,1748577038434,-500.0,0.0001785,2]
[363098669,1748577038444,-500.0,0.0001785,2]
[363098671,1748577038453,-500.0,0.0001785,2]
[363098672,1748577038463,-500.0,0.0001785,2]
[363098673,1748577038472,-500.0,0.0001785,2]
[363098674,1748577038482,-500.0,0.0001785,2]
[363098675,1748577038491,-242.2288887,0.0001785,2]
[363098676,1748577038501,-500.0,0.0001785,2]
[363098677,1748577038511,-500.0,0.0001785,2]
[363098678,1748577038520,-500.0,0.0001785,2]
[363098679,1748577038530,-500.0,0.0001785,2]
[363098680,1748577038539,-500.0,0.0001785,2]
[363098681,1748577038549,-500.0,0.0001785,2]
[363098683,1748577038559,-500.0,0.0001785,2]
[363098685,1748577038568,-500.0,0.0001785,2]
[363098687,1748577038578,-500.0,0.0001785,2]
[363098689,1748577038587,-618.16417919,0.0001785,2]
[363098691,1748577038597,-500.0,0.0001785,2]
[363098693,1748577038606,-500.0,0.0001785,2]
[363098695,1748577038615,-500.0,0.0001785,2]
[363098697,1748577038624,-500.0,0.0001785,2]
[363098699,1748577038634,-500.0,0.0001785,2]
[363098701,1748577038643,-500.0,0.0001785,2]
[363098703,1748577038652,-500.0,0.0001785,2]
[363098705,1748577038662,-500.0,0.0001785,2]
[363098706,1748577038671,-500.0,0.0001785,2]
[363098708,1748577038680,-500.0,0.0001785,2]
[363098710,1748577038689,-500.0,0.0001785,2]
[363098712,1748577038699,-500.0,0.0001785,2]
[363098714,1748577038708,-500.0,0.0001785,2]
[363098716,1748577038717,-500.0,0.0001785,2]
[363098718,1748577038726,-500.0,0.0001785,2]
[363098720,1748577038735,-500.0,0.0001785,2]
[363098722,1748577038744,-500.0,0.0001785,2]
[363098724,1748577038753,-500.0,0.0001785,2]
[363098726,1748577038762,-500.0,0.0001785,2]
[363098728,1748577038771,-500.0,0.0001785,2]
[363098730,1748577038780,-500.0,0.0001785,2]
[363098732,1748577038789,-500.0,0.0001785,2]
[363098734,1748577038798,-500.0,0.0001785,2]
[363098736,1748577038807,-500.0,0.0001785,2]
[363098738,1748577038817,-500.0,0.0001785,2]
[363098740,1748577038827,-500.0,0.0001785,2]
[363098742,1748577038837,-500.0,0.0001785,2]
[363098744,1748577038846,-269.97488818,0.0001785,2]
[363098746,1748577038855,-6255.6574321,0.00017851,2]
[363098748,1748577038864,-614.31781501,0.00017956,2]
[363098750,1748577038873,-977.71262192,0.00018,2]
[363098752,1748577038882,-674.2,0.0001803,2]
[363098754,1748577038891,-977.71262167,0.00018141,2]
[363098756,1748577038901,-977.71262167,0.00018383,2]
[363098758,1748577038910,-200.78402831,0.00018418,2]
[363098760,1748577038919,-977.71262167,0.00018624,2]
[363098762,1748577038928,-770.51,0.00018698,2]
[363098764,1748577038937,-977.71262167,0.00018866,2]
[363098766,1748577038946,-330.49035896,0.000189,2]
[363098768,1748577038955,-614.31781494,0.00018921,2]
[363098770,1748577038964,-207.4,0.00019025,2]
[363098772,1748577038974,-5000.0,0.000191,2]
[363098774,1748577038983,-977.71262167,0.00019107,2]
[363098776,1748577038992,-300.0,0.00019166,2]
[363098778,1748577039001,-300.0,0.00019166,2]
[363098780,1748577039010,-300.0,0.00019166,2]
[363098782,1748577039019,-300.0,0.00019166,2]
[363098784,1748577039028,-300.0,0.00019166,2]
[363098786,1748577039039,-300.0,0.00019166,2]
[363098788,1748577039048,-300.0,0.00019166,2]
[363098790,1748577039057,-300.0,0.00019166,2]
[363098792,1748577039067,-300.0,0.00019166,2]
[363098794,1748577039077,-300.0,0.00019166,2]
[363098796,1748577039086,-156.587,0.00019166,2]
[363098798,1748577039096,-300.0,0.00019166,2]
[363098800,1748577039105,-300.0,0.00019166,2]
[363098802,1748577039115,-300.0,0.00019166,2]
[363098804,1748577039125,-300.0,0.00019166,2]
[363098806,1748577039134,-300.0,0.00019166,2]
[363098808,1748577039144,-976.36,0.00019168,3]
[363098809,1748577039153,-488.18,0.00019168,3]
[363098810,1748577039163,-244.09,0.00019168,3]
[363098811,1748577039173,-732.27,0.00019168,3]
[363098812,1748577039182,-500.0,0.00019177,2]
[363098813,1748577039192,-500.0,0.00019177,2]
[363098814,1748577039201,-248.30668442,0.00019177,2]
[363098815,1748577039210,-450.0,0.00019177,2]
[363098816,1748577039220,-5896.17038265,0.00019177,2]
[363098817,1748577039229,-5896.17038265,0.00019177,2]
[363098818,1748577039238,-5896.17038265,0.00019177,2]
[363098819,1748577039247,-322.50948176,0.00019177,2]
[363098820,1748577039257,-207.02782244,0.00019177,2]
[363098821,1748577039267,-500.0,0.00019178,2]
[363098822,1748577039278,-500.0,0.00019178,2]
[363098823,1748577039288,-500.0,0.00019178,2]
[363098824,1748577039298,-500.0,0.00019178,2]
[363098825,1748577039307,-388.75475516,0.00019178,2]
[363098826,1748577039317,-500.0,0.00019178,2]
[363098827,1748577039327,-500.0,0.00019178,2]
[363098828,1748577039336,-500.0,0.00019178,2]
[363098829,1748577039345,-500.0,0.00019178,2]
[363098831,1748577039358,-430.0,0.00019178,2]
[363098833,1748577039368,-430.0,0.00019178,2]
[363098835,1748577039378,-430.0,0.00019178,2]
[363098837,1748577039387,-430.0,0.00019178,2]
[363098839,1748577039397,-430.0,0.00019178,2]
[363098840,1748577039407,-427.20467183,0.00019178,2]
[363098842,1748577039418,-430.0,0.00019178,2]
[363098845,1748577039427,-430.0,0.00019178,2]
[363098847,1748577039437,-430.0,0.00019178,2]
[363098849,1748577039447,-430.0,0.00019178,2]
[363098851,1748577039456,-430.0,0.00019178,2]
[363098852,1748577039466,-430.0,0.00019178,2]
[363098853,1748577039475,-430.0,0.00019178,2]
[363098854,1748577039485,-430.0,0.00019178,2]
[363098855,1748577039494,-430.0,0.00019178,2]
[363098856,1748577039503,-430.0,0.00019178,2]
[363098857,1748577039512,-430.0,0.00019178,2]
[363098858,1748577039522,-430.0,0.00019178,2]
[363098859,1748577039531,-518.60808731,0.00019178,2]
[363098860,1748577039541,-430.0,0.00019178,2]
[363098861,1748577039550,-430.0,0.00019178,2]
[363098862,1748577039559,-430.0,0.00019178,2]
[363098863,1748577039569,-430.0,0.00019178,2]
[363098864,1748577039578,-450.0,0.00019178,2]
[363098865,1748577039588,-438.02812103,0.00019178,2]
[363098866,1748577039598,-245.48418958,0.00019178,2]
[363098867,1748577039607,-430.0,0.00019178,2]
[363098868,1748577039616,-430.0,0.00019178,2]
[363098869,1748577039625,-430.0,0.00019178,2]
[363098870,1748577039635,-430.0,0.00019178,2]
[363098871,1748577039644,-430.0,0.00019178,2]
[363098872,1748577039654,-400.94509917,0.00019178,2]
[363098873,1748577039663,-430.0,0.00019178,2]
[363098874,1748577039672,-430.0,0.00019178,2]
[363098875,1748577039682,-430.0,0.00019178,2]
[363098876,1748577039691,-160.0,0.00019178,2]
[363098877,1748577039700,-500.0,0.00019178,2]
[363098878,1748577039710,-430.0,0.00019178,2]
[363098879,1748577039719,-400.0,0.00019178,2]
[363098880,1748577039728,-430.0,0.00019178,2]
[363098881,1748577039737,-430.0,0.00019178,2]
[363098882,1748577039747,-430.0,0.00019178,2]
[363098883,1748577039756,-430.0,0.00019178,2]
[363098884,1748577039765,-430.0,0.00019178,2]
[363098885,1748577039775,-430.0,0.00019178,2]
[363098886,1748577039783,-430.0,0.00019178,2]
[363098887,1748577039792,-430.0,0.00019178,2]
[363098888,1748577039802,-438.54422012,0.00019178,2]
[363098889,1748577039811,-430.0,0.00019178,2]
[363098890,1748577039821,-430.0,0.00019178,2]
[363098891,1748577039830,-430.0,0.00019178,2]
[363098892,1748577039840,-430.0,0.00019178,2]
[363098893,1748577039849,-430.0,0.00019178,2]
[363098894,1748577039858,-430.0,0.00019178,2]
[363098895,1748577039867,-430.0,0.00019178,2]
[363098896,1748577039876,-430.0,0.00019178,2]
[363098897,1748577039886,-430.0,0.00019178,2]
[363098898,1748577039895,-430.0,0.00019178,2]
[363098899,1748577039904,-430.0,0.00019178,2]
[363098900,1748577039915,-430.0,0.00019178,2]
[363098901,1748577039924,-430.0,0.00019178,2]
[363098902,1748577039933,-430.0,0.00019178,2]
[363098903,1748577039943,-430.0,0.00019178,2]
[363098904,1748577039952,-430.0,0.00019178,2]
[363098905,1748577039961,-430.0,0.00019178,2]
[363098906,1748577039970,-430.0,0.00019178,2]
[363098907,1748577039980,-490.0,0.00019178,2]
[363098909,1748577039989,-508.90392247,0.00019178,2]
[363098910,1748577039999,-430.0,0.00019178,2]
[363098911,1748577040008,-804.37,0.00019178,2]
[363098913,1748577040017,-470.0,0.00019178,2]
[363098915,1748577040026,-545.67,0.00019178,2]
[363098917,1748577040035,-430.0,0.00019178,2]
[363098919,1748577040045,-465.24,0.00019178,2]
[363098921,1748577040054,-453.26,0.00019178,2]
[363098923,1748577040063,-430.0,0.00019178,2]
[363098925,1748577040072,-259.71551952,0.00019178,2]
[363098928,1748577040081,-430.0,0.00019178,2]
[363098930,1748577040091,-430.0,0.00019178,2]
[363098932,1748577040101,-430.0,0.00019178,2]
[363098934,1748577040110,-430.0,0.00019178,2]
[363098936,1748577040119,-430.0,0.00019178,2]
[363098938,1748577040128,-430.0,0.00019178,2]
[363098940,1748577040138,-430.0,0.00019178,2]
[363098942,1748577040146,-691.04,0.00019178,2]
[363098944,1748577040156,-430.0,0.00019178,2]
[363098946,1748577040166,-430.0,0.00019178,2]
[363098948,1748577040175,-430.0,0.00019178,2]
[363098950,1748577040184,-430.0,0.00019178,2]
[363098952,1748577040193,-430.0,0.00019178,2]
[363098954,1748577040202,-430.0,0.00019178,2]
[363098956,1748577040211,-430.0,0.00019178,2]
[363098958,1748577040221,-430.0,0.00019178,2]
[363098960,1748577040230,-196.80093776,0.00019178,2]
[363098962,1748577040242,-430.0,0.00019178,2]
[363098964,1748577040251,-430.0,0.00019178,2]
[363098966,1748577040260,-370.0,0.00019178,2]
[363098968,1748577040270,-430.0,0.00019178,2]
[363098980,1748577040281,-430.0,0.00019178,2]
[363098982,1748577040389,-430.0,0.00019178,2]
[363098984,1748577040399,-430.0,0.00019178,2]
[363098986,1748577040408,-430.0,0.00019178,2]
[363098988,1748577040418,-430.0,0.00019178,2]
[363098990,1748577040427,-404.10985089,0.00019178,2]
[363098992,1748577040436,-430.0,0.00019178,2]
[363098994,1748577040445,-394.49328369,0.00019178,2]
[363098996,1748577040456,-430.0,0.00019178,2]
[363098998,1748577040465,-430.0,0.00019178,2]
[363099000,1748577040475,-500.0,0.00019178,2]
[363099002,1748577040484,-430.0,0.00019178,2]
[363099004,1748577040494,-470.0,0.00019178,2]
[363099006,1748577040503,-458.67074317,0.00019178,2]
[363099008,1748577040512,-430.0,0.00019178,2]
[363099010,1748577040522,-430.0,0.00019178,2]
[363099012,1748577040531,-430.0,0.00019178,2]
[363099014,1748577040540,-430.0,0.00019178,2]
[363099016,1748577040549,-430.0,0.00019178,2]
[363099018,1748577040559,-430.0,0.00019178,2]
[363099020,1748577040568,-430.0,0.00019178,2]
[363099022,1748577040578,-430.0,0.00019178,2]